fUST/lending_fUST_20260226
["ID","MTS","AMOUNT","RATE_DAILY","PERIOD"]
[406670409,1772057242298,-200.0,0.00013326,2]
[406670410,1772057242318,-281.35639044,0.00013355,2]
[406670411,1772057242340,-200.0,0.00013415,4]
[406670412,1772057242364,-300.0,0.00013592,2]
[406670413,1772057242387,-300.0,0.00013592,2]
[406670414,1772057242411,-300.0,0.00013592,2]
[406670415,1772057242434,-300.0,0.00013592,2]
[406670416,1772057242456,-300.0,0.00013592,2]
[406670417,1772057242477,-300.0,0.00013592,2]
[406670418,1772057242500,-300.0,0.00013592,2]
[406670419,1772057242522,-300.0,0.00013592,2]
[406670420,1772057242544,-300.0,0.00013592,2]
[406670421,1772057242566,-300.0,0.00013592,2]
[406670422,1772057242587,-300.0,0.00013592,2]
[406670423,1772057242612,-300.0,0.00013592,2]
[406670424,1772057242634,-300.0,0.00013592,2]
[406670425,1772057242657,-300.0,0.00013592,2]
[406670426,1772057242679,-300.0,0.00013592,2]
[406670427,1772057242700,-600.0,0.00013593,2]
[406670428,1772057242721,-214.3164995,0.00013599,2]
[406670429,1772057242742,-420.0,0.00014606,2]
[406670430,1772057242762,-420.0,0.00014607,2]
[406670431,1772057242783,-246.0,0.00014607,2]
[406670432,1772057242804,-420.0,0.00014607,2]
[406670433,1772057242824,-14426.49506181,0.00014632,2]
[406670434,1772057242844,-10000.0,0.00014641,2]
[406670435,1772057242865,-1680.0,0.00014656,2]
[406670436,1772057242888,-520.30773535,0.00014952,2]
[406670437,1772057250297,-199.69226465,0.00014952,2]
[406670438,1772057250319,-255.271459,0.00015068,2]
[406670439,1772057250340,-281.35639044,0.00015175,2]
[406670440,1772057250363,-1218.94545174,0.00015184,2]
[406670442,1772057345158,-1909.2035175,0.00014223,2]
[406670443,1772057345191,-1932.01331576,0.00015184,2]
[406670444,1772057345225,-423.02449933,0.00015323,2]
[406670445,1772057345256,-794.302595,0.00015782,2]
[406670446,1772057345289,-200.0,0.00015968,3]
[406670447,1772057345323,-300.0,0.00016013,2]
[406670448,1772057345356,-50000.0,0.00016014,2]
[406670449,1772057345389,-587.0,0.00016014,2]
[406670450,1772057345422,-587.0,0.00016014,2]
[406670451,1772057345457,-1909.2035175,0.00016072,2]
[406670452,1772057345491,-216.2167,0.00016117,120]
[406670453,1772057345525,-216.1667,0.00016117,120]
[406670454,1772057345561,-620.0,0.00016122,2]
[406670455,1772057345595,-247.59362359,0.00016163,2]
[406670456,1772057345628,-247.59362359,0.00016175,2]
[406670457,1772057345661,-247.59362359,0.00016213,2]
[406670458,1772057345694,-838.92300252,0.0001622,2]
[406670459,1772057345727,-247.59362359,0.00016275,2]
[406670460,1772057345763,-600.0,0.00016333,2]
[406670461,1772057345797,-300.0,0.00016333,2]
[406670462,1772057345835,-300.0,0.00016333,2]
[406670463,1772057345871,-300.0,0.00016333,2]
[406670464,1772057345908,-300.0,0.00016333,2]
[406670465,1772057345946,-300.0,0.00016333,2]
[406670466,1772057345981,-300.0,0.00016333,2]
[406670467,1772057346018,-300.0,0.00016333,2]
[406670468,1772057346053,-300.0,0.00016333,2]
[406670469,1772057346086,-300.0,0.00016333,2]
[406670470,1772057346384,-300.0,0.00016333,2]
[406670471,1772057346406,-300.0,0.00016333,2]
[406670472,1772057346429,-300.0,0.00016333,2]
[406670473,1772057346451,-300.0,0.00016333,2]
[406670474,1772057346474,-300.0,0.00016333,2]
[406670475,1772057346497,-300.0,0.00016333,2]
[406670476,1772057346517,-247.59362359,0.00016363,2]
[406670477,1772057346538,-150.0,0.000164,2]
[406670478,1772057346559,-479.457967,0.00016429,2]
[406670479,1772057346580,-247.59362359,0.00016475,2]
[406670480,1772057346600,-247.59362359,0.00016612,2]
[406670481,1772057346621,-247.59362359,0.00016775,2]
[406670482,1772057346640,-247.59362359,0.00016962,2]
[406670483,1772057346661,-366.3004215,0.00016983,2]
[406670484,1772057346680,-1938.23855544,0.00017,2]
[406670485,1772057346700,-479.457967,0.00017121,2]
[406670486,1772057346720,-247.59362359,0.00017174,2]
[406670487,1772057346739,-801.53213836,0.000173,2]
[406670488,1772057346760,-487.55366025,0.00017323,2]
[406670489,1772057346781,-247.59362359,0.00017411,2]
[406670490,1772057346803,-420.0,0.00017507,2]
[406670491,1772057346836,-313.0,0.00017556,2]
[406670492,1772057346857,-313.0,0.00017556,2]
[406670493,1772057346876,-247.59362359,0.00017673,2]
[406670494,1772057346896,-235.66,0.000178,2]
[406670495,1772057346916,-250.84133324,0.00017809,2]
[406670496,1772057346937,-479.457967,0.00017813,2]
[406670497,1772057346962,-1022.9008641,0.00017891,2]
[406670498,1772057346982,-184.00709104,0.000179,2]
[406670499,1772057347004,-1909.2035175,0.0001792,2]
[406670500,1772057347026,-247.59362359,0.00017961,2]
[406670501,1772057347048,-720.0,0.00017967,2]
[406670502,1772057347068,-33761.97474829,0.00017997,2]
[406670503,1772057348064,-354.61440674,0.00016013,2]
[406670504,1772057351879,-11435.03083282,0.00017997,2]
[406670505,1772057359115,-104385.03518043,0.00017997,2]
[406670506,1772057366103,500.0,0.00016013,2]
[406670507,1772057366143,0.88256416,0.00016013,2]
[406670508,1772057373100,-499.11743584,0.00016013,2]
[406670509,1772057373123,-287.19672799,0.00016013,2]
[406670510,1772057373607,247.59362359,0.00014278,2]
[406670511,1772057384158,247.84121721,0.00014278,2]
[406670546,1772057432851,-151.0,0.00016004,2]
[406670547,1772057432861,-151.0,0.00016004,2]
[406670548,1772057432870,-151.0,0.00016004,2]
[406670549,1772057432880,-151.0,0.00016004,2]
[406670550,1772057432890,-151.0,0.00016004,2]
[406670551,1772057432899,-151.0,0.00016004,2]
[406670552,1772057432908,-151.0,0.00016004,2]
[406670553,1772057432917,-652.0,0.00016013,2]
[406670554,1772057432926,-247.59362359,0.00016163,2]
[406670555,1772057432935,-300.0,0.00016332,2]
[406670556,1772057432944,-300.0,0.00016332,2]
[406670557,1772057432954,-300.0,0.00016332,2]
[406670558,1772057432962,-300.0,0.00016332,2]
[406670559,1772057432972,-300.0,0.00016332,2]
[406670560,1772057432985,-300.0,0.00016332,2]
[406670561,1772057432994,-300.0,0.00016332,2]
[406670562,1772057433003,-300.0,0.00016332,2]
[406670563,1772057433014,-300.0,0.00016332,2]
[406670564,1772057433025,-300.0,0.00016332,2]
[406670565,1772057433034,-300.0,0.00016332,2]
[406670566,1772057433044,-300.0,0.00016332,2]
[406670567,1772057433055,-300.0,0.00016332,2]
[406670568,1772057433064,-300.0,0.00016332,2]
[406670569,1772057433073,-300.0,0.00016332,2]
[406670570,1772057433083,-600.0,0.00016332,2]
[406670571,1772057433092,-720.0,0.00017965,2]
[406670572,1772057433101,-296.06108213,0.00017996,2]
[406670573,1772057433843,-203.93891787,0.00017996,2]
[406670574,1772057433853,-500.0,0.00017996,2]
[406670575,1772057433863,-338.3227129,0.00017996,2]
[406670576,1772057433873,-154.83096305,0.00017997,2]
[406670577,1772057435163,-4168.93556143,0.00017997,2]
[406670585,1772057439276,-25875.36814832,0.00017997,2]
[406670586,1772057439288,-1963.69905248,0.00018,120]
[406670587,1772057439298,-179.11,0.00018,2]
[406670588,1772057439307,-479.457967,0.00018504,2]
[406670589,1772057439318,-184.00709103,0.00018567,2]
[406670590,1772057439327,-250.0,0.00018764,2]
[406670591,1772057439337,-250.0,0.00018764,2]
[406670592,1772057439347,-250.0,0.00018764,2]
[406670593,1772057439356,-250.0,0.00018764,2]
[406670594,1772057439365,-250.0,0.00018764,2]
[406670595,1772057439375,-250.0,0.00018764,2]
[406670596,1772057439384,-250.0,0.00018764,2]
[406670597,1772057439394,-250.0,0.00018764,2]
[406670598,1772057439403,-250.0,0.00018764,2]
[406670599,1772057439413,-250.0,0.00018764,2]
[406670600,1772057439423,-250.0,0.00018764,2]
[406670601,1772057439433,-250.0,0.00018764,2]
[406670602,1772057439443,-250.0,0.00018764,2]
[406670603,1772057439453,-250.0,0.00018764,2]
[406670604,1772057439463,-250.0,0.00018764,2]
[406670605,1772057439473,-250.0,0.00018764,2]
[406670606,1772057439484,-250.0,0.00018764,2]
[406670607,1772057439494,-250.0,0.00018764,2]
[406670608,1772057439504,-391.89463624,0.00018764,2]
[406670609,1772057439514,-250.0,0.00018764,2]
[406670610,1772057439524,-250.0,0.00018764,2]
[406670611,1772057439536,-250.0,0.00018764,2]
[406670612,1772057439546,-250.0,0.00018764,2]
[406670613,1772057439555,-250.0,0.00018764,2]
[406670614,1772057439565,-250.0,0.00018764,2]
[406670615,1772057439576,-250.0,0.00018764,2]
[406670616,1772057439586,-250.0,0.00018764,2]
[406670617,1772057439596,-194.72792766,0.00018764,2]
[406670618,1772057439606,-250.0,0.00018764,2]
[406670619,1772057439615,-250.0,0.00018764,2]
[406670620,1772057439624,-509.43865141,0.00018764,2]
[406670621,1772057439634,-250.0,0.00018764,2]
[406670622,1772057439644,-250.0,0.00018764,2]
[406670623,1772057439653,-250.0,0.00018764,2]
[406670624,1772057439663,-363.34881021,0.00018764,2]
[406670625,1772057439672,-250.0,0.00018764,2]
[406670626,1772057439681,-250.0,0.00018764,2]
[406670627,1772057439692,-644.79446246,0.00018764,2]
[406670628,1772057439702,-250.0,0.00018764,2]
[406670629,1772057439712,-250.0,0.00018764,2]
[406670630,1772057439722,-250.0,0.00018764,2]
[406670631,1772057439731,-250.0,0.00018764,2]
[406670632,1772057439740,-250.0,0.00018764,2]
[406670633,1772057439750,-250.0,0.00018764,2]
[406670634,1772057439759,-250.0,0.00018764,2]
[406670635,1772057439768,-194.72792766,0.00018764,2]
[406670636,1772057439778,-250.0,0.00018764,2]
[406670637,1772057439791,-250.0,0.00018764,2]
[406670638,1772057439800,-250.0,0.00018764,2]
[406670639,1772057439809,-201.93286099,0.00018764,2]
[406670640,1772057439819,-250.0,0.00018764,2]
[406670641,1772057439828,-250.0,0.00018764,2]
[406670642,1772057439838,-209.40437684,0.00018764,2]
[406670643,1772057439848,-250.0,0.00018764,2]
[406670644,1772057439857,-250.0,0.00018764,2]
[406670645,1772057439866,-250.0,0.00018764,2]
[406670646,1772057439875,-217.15233878,0.00018764,2]
[406670647,1772057439885,-250.0,0.00018764,2]
[406670648,1772057439895,-250.0,0.00018764,2]
[406670649,1772057439905,-225.18697532,0.00018764,2]
[406670650,1772057439915,-250.0,0.00018764,2]
[406670651,1772057439924,-250.0,0.00018764,2]
[406670652,1772057439934,-295.97260585,0.00018764,2]
[406670653,1772057439944,-250.0,0.00018764,2]
[406670654,1772057439953,-250.0,0.00018764,2]
[406670655,1772057439962,-250.0,0.00018764,2]
[406670656,1772057439975,-250.0,0.00018764,2]
[406670657,1772057439986,-233.51889341,0.00018764,2]
[406670658,1772057439997,-250.0,0.00018764,2]
[406670659,1772057440007,-242.15909246,0.00018764,2]
[406670660,1772057440016,-250.0,0.00018764,2]
[406670661,1772057440028,-251.11897888,0.00018764,2]
[406670662,1772057440039,-250.0,0.00018764,2]
[406670664,1772057440050,-250.0,0.00018764,2]
[406670665,1772057440061,-260.4103811,0.00018764,2]
[406670666,1772057440071,-250.0,0.00018764,2]
[406670667,1772057440081,-270.0455652,0.00018764,2]
[406670668,1772057440090,-250.0,0.00018764,2]
[406670669,1772057440100,-250.0,0.00018764,2]
[406670670,1772057440109,-280.03725112,0.00018764,2]
[406670671,1772057440118,-250.0,0.00018764,2]
[406670672,1772057440127,-250.0,0.00018764,2]
[406670673,1772057440137,-290.39862941,0.00018764,2]
[406670674,1772057440147,-250.0,0.00018764,2]
[406670675,1772057440156,-250.0,0.00018764,2]
[406670676,1772057440165,-250.0,0.00018764,2]
[406670678,1772057440175,-301.1433787,0.00018764,2]
[406670679,1772057440184,-250.0,0.00018764,2]
[406670680,1772057440194,-250.0,0.00018764,2]
[406670681,1772057440203,-250.0,0.00018764,2]
[406670682,1772057440220,-250.0,0.00018764,2]
[406670683,1772057440230,-500.0,0.00018764,2]
[406670685,1772057440240,-500.0,0.00018764,2]
[406670686,1772057440250,-500.0,0.00018764,2]
[406670687,1772057440259,-500.0,0.00018764,2]
[406670688,1772057440268,-500.0,0.00018764,2]
[406670689,1772057440277,-500.0,0.00018764,2]
[406670690,1772057440288,-500.0,0.00018764,2]
[406670692,1772057440298,-500.0,0.00018764,2]
[406670694,1772057440308,-500.0,0.00018764,2]
[406670696,1772057440317,-500.0,0.00018764,2]
[406670698,1772057440326,-500.0,0.00018764,2]
[406670700,1772057440336,-500.0,0.00018764,2]
[406670702,1772057440345,-500.0,0.00018764,2]
[406670704,1772057440355,-500.0,0.00018764,2]
[406670706,1772057440364,-500.0,0.00018764,2]
[406670708,1772057440373,-500.0,0.00018764,2]
[406670710,1772057440383,-500.0,0.00018764,2]
[406670712,1772057440392,-500.0,0.00018764,2]
[406670714,1772057440401,-500.0,0.00018764,2]
[406670716,1772057440411,-500.0,0.00018764,2]
[406670718,1772057440420,-500.0,0.00018764,2]
[406670720,1772057440429,-500.0,0.00018764,2]
[406670722,1772057440440,-500.0,0.00018764,2]
[406670724,1772057440449,-500.0,0.00018764,2]
[406670726,1772057440458,-500.0,0.00018764,2]
[406670728,1772057440468,-2579.17784983,0.00018764,2]
[406670730,1772057440477,-500.0,0.00018764,2]
[406670732,1772057440487,-250.0,0.00018764,2]
[406670734,1772057440496,-500.0,0.00018764,2]
[406670736,1772057440506,-500.0,0.00018764,2]
[406670738,1772057440515,-500.0,0.00018764,2]
[406670740,1772057440525,-250.0,0.00018764,2]
[406670742,1772057440536,-500.0,0.00018764,2]
[406670744,1772057440547,-500.0,0.00018764,2]
[406670746,1772057440557,-500.0,0.00018764,2]
[406670748,1772057440566,-250.0,0.00018764,2]
[406670750,1772057440575,-400.88963775,0.00018875,5]
[406670752,1772057440584,-2100.0,0.00018896,2]
[406670754,1772057440593,-200.0,0.00018919,4]
[406670755,1772057440602,-479.457967,0.00019196,2]
[406670757,1772057440611,-184.00709103,0.00019233,2]
[406670760,1772057440621,-668.65185757,0.00019312,2]
[406670761,1772057440631,-1334.49449595,0.00019312,2]
[406670764,1772057440645,-1340.11293432,0.00019312,2]
[406670766,1772057440654,-552.08282116,0.00019323,2]
[406670768,1772057440664,-511.70925958,0.0001948,2]
[406670770,1772057440674,-103.93537845,0.00019558,2]
[406670772,1772057440685,-896.06462155,0.00019558,2]
[406670774,1772057440695,-1000.0,0.00019558,2]
[406670776,1772057440705,-1000.0,0.00019558,2]
[406670778,1772057440714,-1000.0,0.00019558,2]
[406670780,1772057440724,-1000.0,0.00019558,2]
[406670782,1772057440734,-1000.0,0.00019558,2]
[406670784,1772057440743,-456.04703866,0.00019558,2]
[406670786,1772057440754,-543.95296134,0.00019558,2]
[406670788,1772057440764,-1000.0,0.00019558,2]
[406670790,1772057440773,-1000.0,0.00019558,2]
[406670792,1772057440784,-1000.0,0.00019558,2]
[406670794,1772057440793,-1000.0,0.00019558,2]
[406670796,1772057440803,-1000.0,0.00019558,2]
[406670797,1772057440812,-1000.0,0.00019558,2]
[406670799,1772057440821,-1000.0,0.00019558,2]
[406670801,1772057440830,-323.27751018,0.00019558,2]
[406670804,1772057440850,-676.72248982,0.00019558,2]
[406670806,1772057440860,-857.32181896,0.000196,2]
[406670849,1772057441276,-364.42691488,0.00018764,2]
[406670852,1772057441297,-135.57308512,0.00018764,2]
[406670854,1772057441306,-500.0,0.00018764,2]
[406670856,1772057441315,-250.0,0.00018764,2]
[406670858,1772057441325,-500.0,0.00018764,2]
[406670860,1772057441334,-500.0,0.00018764,2]
[406670862,1772057441343,-250.0,0.00018764,2]
[406670864,1772057441352,-500.0,0.00018764,2]
[406670866,1772057441362,-54.7252573,0.00018764,2]
[406670879,1772057441530,-195.2747427,0.00018764,2]
[406670880,1772057441543,-500.0,0.00018764,2]
[406670881,1772057441553,-2416.77211175,0.000196,2]
[406670882,1772057441563,-304.254,0.00019687,2]
[406670883,1772057441573,-160.63541141,0.00019734,2]
[406670884,1772057441583,-864.0,0.00019762,2]
[406670885,1772057441592,-1909.2035175,0.00019769,2]
[406670886,1772057441602,-271.33925128,0.00019787,2]
[406670887,1772057441612,-488.4106523,0.0001979,2]
[406670888,1772057441621,-774.84,0.0001979,3]
[406670889,1772057441630,-1184.6076044,0.00019799,2]
[406670891,1772057441639,-1120.43379386,0.00019799,2]
[406671001,1772057443706,-421.537,0.00018764,2]
[406671002,1772057443718,-78.463,0.00018764,2]
[406671003,1772057443728,-250.0,0.00018764,2]
[406671004,1772057443738,-250.0,0.00018764,2]
[406671005,1772057443747,-228.52827554,0.00018764,2]
[406671006,1772057443794,-21.47172446,0.00018764,2]
[406671007,1772057443804,-250.0,0.00018764,2]
[406671008,1772057443814,-300.0,0.00019139,2]
[406671009,1772057443823,-300.0,0.00019139,2]
[406671010,1772057443835,-8492.16318314,0.00019799,2]
[406671011,1772057443844,-688.0,0.000198,2]
[406671012,1772057443853,-688.0,0.000198,2]
[406671013,1772057443863,-688.0,0.000198,2]
[406671014,1772057443873,-688.0,0.000198,2]
[406671015,1772057443882,-688.0,0.000198,2]
[406671016,1772057443892,-1000.0,0.000198,2]
[406671017,1772057443901,-1000.0,0.000198,2]
[406671018,1772057443910,-1000.0,0.000198,2]
[406671019,1772057443919,-1000.0,0.000198,2]
[406671020,1772057443928,-1000.0,0.000198,2]
[406671021,1772057443937,-1000.0,0.000198,2]
[406671022,1772057443947,-1000.0,0.000198,2]
[406671023,1772057443957,-1000.0,0.000198,2]
[406671024,1772057443966,-1000.0,0.000198,2]
[406671025,1772057443977,-1000.0,0.000198,2]
[406671026,1772057443986,-1000.0,0.000198,2]
[406671028,1772057443999,-1000.0,0.000198,2]
[406671030,1772057444008,-1000.0,0.000198,2]
[406671032,1772057444017,-1000.0,0.000198,2]
[406671034,1772057444029,-1000.0,0.000198,2]
[406671036,1772057444040,-1000.0,0.000198,2]
[406671038,1772057444049,-1000.0,0.000198,2]
[406671039,1772057444060,-756.804659,0.000198,2]
[406671040,1772057444072,-693.3919763,0.0001986,2]
[406671041,1772057444082,-2773.56790519,0.0001986,2]
[406671042,1772057444092,-479.457967,0.00019887,2]
[406671043,1772057444102,-258.28,0.0001989,3]
[406671044,1772057444112,-2000.0,0.000199,2]
[406671045,1772057444122,-184.00709103,0.000199,2]
[406671046,1772057444132,-39128.80541883,0.000199,2]
[406671047,1772057444142,-688.0,0.0001995,2]
[406671048,1772057444152,-688.0,0.0001995,2]
[406671049,1772057444161,-688.0,0.0001995,2]
[406671050,1772057444170,-688.0,0.0001995,2]
[406671051,1772057444179,-688.0,0.0001995,2]
[406671052,1772057444189,-688.0,0.0001995,2]
[406671053,1772057444199,-688.0,0.0001995,2]
[406671054,1772057444208,-817.11074024,0.0001995,2]
[406671055,1772057444217,-688.0,0.0001995,2]
[406671056,1772057444227,-688.0,0.0001995,2]
[406671057,1772057444236,-688.0,0.0001995,2]
[406671058,1772057444246,-688.0,0.0001995,2]
[406671059,1772057444256,-2000.0,0.0002,7]
[406671060,1772057444266,-519449.2856157,0.0002,2]
[406671061,1772057445100,-250.0,0.00018764,2]
[406671062,1772057445110,-613.07856669,0.0002,2]
[406671074,1772057446571,-250.0,0.00018764,2]
[406671075,1772057446582,-250.0,0.00018764,2]
[406671076,1772057446594,-300.0,0.00019139,2]
[406671077,1772057446605,-300.0,0.00019139,2]
[406671078,1772057446616,-300.0,0.00019139,2]
[406671079,1772057446625,-300.0,0.00019139,2]
[406671080,1772057446636,-300.0,0.00019139,2]
[406671081,1772057446647,-58293.01188771,0.0002,2]
[406671082,1772057446664,-61082.07833155,0.0002,2]
[406671093,1772057955356,170.604504,7e-05,2]
[406671097,1772058339108,-210.03117856,0.0001282,2]
[406671098,1772058435131,-989.96882144,0.0001282,2]
[406671099,1772058435152,-300.0,0.0001282,2]
[406671100,1772058435174,-788.56018808,0.00012821,2]
[406671103,1772058446104,-258.0225074,0.00012687,2]
[406671104,1772058446125,-1854.78020556,0.00012821,2]
[406671108,1772058545096,-300.0,0.00012687,2]
[406671109,1772058545116,-468.36910171,0.00012821,2]
[406671111,1772058557172,-6677.22677075,0.00012821,2]
[406671112,1772058557194,-337.04101513,0.00013032,2]
[406671113,1772058557215,-300.0,0.00013242,2]
[406671114,1772058557435,-300.0,0.00013243,2]
[406671115,1772058557455,-300.0,0.00013243,2]
[406671116,1772058557477,-300.0,0.00013243,2]
[406671117,1772058557498,-300.0,0.00013673,2]
[406671118,1772058557519,-615.0,0.00013685,2]
[406671119,1772058557543,-30836.00551204,0.00013696,2]
[406671120,1772058557563,-2572.81452798,0.00013727,2]
[406671121,1772058557585,-254.96591972,0.00013727,2]
[406671122,1772058557609,-485.50149559,0.00014221,2]
[406671123,1772058557633,-420.0,0.00014518,2]
[406671124,1772058557656,-213.41083194,0.00014915,2]
[406671125,1772058557680,-350.69504512,0.00015032,2]
[406671126,1772058564080,-47.01335273,0.00015032,2]
[406671127,1772058564102,-444.98269732,0.00015918,2]
[406671128,1772058566121,-2.01730268,0.00015918,2]
[406671129,1772058566144,-500.0,0.00016013,2]
[406671130,1772058566166,-558.42,0.00016013,2]
[406671131,1772058566188,-1830.6446282,0.00016018,2]
[406671132,1772058566211,-458.37578058,0.00017032,2]
[406671133,1772058566232,-221.90247458,0.00017731,2]
[406671134,1772058566256,-910.5579554,0.00017877,2]
[406671135,1772058566277,-500.0,0.00017934,2]
[406671136,1772058566298,-183.94373318,0.00017934,2]
[406671137,1772058583824,222.0,0.000157,120]
[406671138,1772058597193,155.0,0.000157,120]
[406671139,1772058626507,435.01212802,0.00013695,2]
[406671140,1772058626532,64.98787198,0.00013695,2]
[406671141,1772058626573,500.0,0.00013695,2]
[406671142,1772058626609,261.44757949,0.00013695,2]
[406671168,1772058631511,-238.55242051,0.00013695,2]
[406671170,1772058631521,-358.44757949,0.00013695,2]
[406671172,1772058631532,-141.55242051,0.00013695,2]
[406671174,1772058631541,-500.0,0.00013695,2]
[406671176,1772058631551,-599.84049788,0.00013695,2]
[406671178,1772058631561,-500.0,0.00013695,2]
[406671180,1772058631570,-500.0,0.00013695,2]
[406671182,1772058631580,-500.0,0.00013695,2]
[406671185,1772058631589,-500.0,0.00013695,2]
[406671188,1772058631598,-193.69053605,0.00013695,2]
[406671191,1772058631609,-306.30946395,0.00013695,2]
[406671194,1772058631618,-500.0,0.00013695,2]
[406671197,1772058631628,-500.0,0.00013695,2]
[406671199,1772058631638,-500.0,0.00013695,2]
[406671201,1772058631647,-500.0,0.00013695,2]
[406671203,1772058631657,-500.0,0.00013695,2]
[406671205,1772058631667,-500.0,0.00013695,2]
[406671207,1772058631677,-500.0,0.00013695,2]
[406671209,1772058631686,-373.4953813,0.00013695,2]
[406671212,1772058631709,-126.5046187,0.00013695,2]
[406671214,1772058631719,-423.34146242,0.00013695,2]
[406671216,1772058631730,-76.65853758,0.00013695,2]
[406671218,1772058631740,-332.32270487,0.00013695,2]
[406671229,1772058637852,-167.67729513,0.00013695,2]
[406671230,1772058637861,-500.0,0.00013695,2]
[406671231,1772058637871,-500.0,0.00013695,2]
[406671232,1772058637881,-500.0,0.00013695,2]
[406671233,1772058637891,-326.36626682,0.00017934,2]
[406671234,1772058637901,-685.0,0.00017934,2]
[406671235,1772058637910,-1449.333013,0.00018,2]
[406671236,1772058637920,-1000.0,0.000185,2]
[406671237,1772058637929,-200.0,0.00018692,4]
[406671238,1772058637938,-151.0,0.00018783,2]
[406671239,1772058637948,-151.0,0.00018783,2]
[406671240,1772058637958,-151.0,0.00018783,2]
[406671241,1772058637968,-151.0,0.00018783,2]
[406671242,1772058637977,-500.0,0.00018783,2]
[406671243,1772058637987,-194.72792766,0.00018783,2]
[406671244,1772058637996,-500.0,0.00018783,2]
[406671245,1772058638006,-500.0,0.00018783,2]
[406671246,1772058638015,-500.0,0.00018783,2]
[406671247,1772058638024,-500.0,0.00018783,2]
[406671248,1772058638033,-500.0,0.00018783,2]
[406671249,1772058638043,-2579.17784983,0.00018783,2]
[406671250,1772058638052,-500.0,0.00018783,2]
[406671251,1772058638061,-1957.856,0.00018783,2]
[406671252,1772058638071,-201.93286099,0.00018783,2]
[406671253,1772058638081,-500.0,0.00018783,2]
[406671254,1772058638090,-500.0,0.00018783,2]
[406671255,1772058638099,-500.0,0.00018783,2]
[406671256,1772058638109,-500.0,0.00018783,2]
[406671257,1772058638119,-500.0,0.00018783,2]
[406671258,1772058638128,-209.40437684,0.00018783,2]
[406671259,1772058638137,-217.15233878,0.00018783,2]
[406671260,1772058638146,-500.0,0.00018783,2]
[406671261,1772058638155,-225.18697532,0.00018783,2]
[406671262,1772058638165,-233.51889341,0.00018783,2]
[406671263,1772058638175,-242.15909246,0.00018783,2]
[406671264,1772058638184,-251.11897888,0.00018783,2]
[406671265,1772058638193,-260.4103811,0.00018783,2]
[406671266,1772058638202,-270.0455652,0.00018783,2]
[406671267,1772058638211,-280.03725112,0.00018783,2]
[406671268,1772058638221,-290.39862941,0.00018783,2]
[406671269,1772058638231,-644.79446246,0.00018783,2]
[406671270,1772058638240,-500.0,0.00018783,2]
[406671271,1772058638250,-301.1433787,0.00018783,2]
[406671272,1772058638259,-500.0,0.00018783,2]
[406671273,1772058638269,-500.0,0.00018783,2]
[406671274,1772058638278,-500.0,0.00018783,2]
[406671275,1772058638287,-250.0,0.00018783,2]
[406671276,1772058638296,-500.0,0.00018783,2]
[406671277,1772058638306,-250.0,0.00018783,2]
[406671278,1772058638315,-250.0,0.00018783,2]
[406671279,1772058638324,-500.0,0.00018783,2]
[406671280,1772058638333,-250.0,0.00018783,2]
[406671281,1772058638342,-250.0,0.00018783,2]
[406671282,1772058638355,-500.0,0.00018783,2]
[406671283,1772058638365,-250.0,0.00018783,2]